[Event "Titled Tuesday Blitz April 05 Late 2022"]
[White "Vusatiuk, Vladimir"]
[Black "Girsh, Daniel"]
[WhiteFideId "14118610"]
[BlackFideId "30949190"]
[WhiteElo "2157"]
[BlackElo "2308"]
[Result "1-0"]
[Round "03"]
[TimeControl "180+1"]
[Date "2022.04.06"]
[WhiteClock "0:00:07"]
[BlackClock "0:00:19"]

1. d4 {[%clk 0:02:51]}  Nf6 {[%clk 0:02:58]} 2. Bg5 {[%clk 0:02:51]}  d5 {[%clk 0:02:57]} 3. Bxf6 {[%clk 0:02:49]}  exf6 {[%clk 0:02:56]} 4. e3 {[%clk 0:02:46]}  Be6 {[%clk 0:02:56]} 5. Nf3 {[%clk 0:02:44]}  c5 {[%clk 0:02:56]} 6. c3 {[%clk 0:02:40]}  Nc6 {[%clk 0:02:56]} 7. Bd3 {[%clk 0:02:33]}  Qb6 {[%clk 0:02:54]} 8. Qc1 {[%clk 0:02:24]}  Rc8 {[%clk 0:02:51]} 9. O-O {[%clk 0:02:20]}  Be7 {[%clk 0:02:44]} 10. Nbd2 {[%clk 0:02:12]}  O-O {[%clk 0:02:42]} 11. dxc5 {[%clk 0:02:10]}  Bxc5 {[%clk 0:02:36]} 12. Nb3 {[%clk 0:02:08]}  Bd6 {[%clk 0:02:31]} 13. Nbd4 {[%clk 0:02:05]}  Ne5 {[%clk 0:02:22]} 14. Be2 {[%clk 0:01:46]}  Rfe8 {[%clk 0:02:20]} 15. Qc2 {[%clk 0:01:44]}  g6 {[%clk 0:02:14]} 16. Rfd1 {[%clk 0:01:37]}  a6 {[%clk 0:02:12]} 17. h3 {[%clk 0:01:28]}  Qc7 {[%clk 0:02:08]} 18. a4 {[%clk 0:01:23]}  Qd7 {[%clk 0:02:07]} 19. a5 {[%clk 0:01:17]}  Kg7 {[%clk 0:02:05]} 20. Nxe6+ {[%clk 0:01:15]}  fxe6 {[%clk 0:02:02]} 21. e4 {[%clk 0:01:13]}  Bb8 {[%clk 0:01:43]} 22. Nxe5 {[%clk 0:00:44]}  Bxe5 {[%clk 0:01:41]} 23. exd5 {[%clk 0:00:43]}  exd5 {[%clk 0:01:41]} 24. Bf3 {[%clk 0:00:41]}  d4 {[%clk 0:01:26]} 25. Qb3 {[%clk 0:00:36]}  Rcd8 {[%clk 0:01:12]} 26. cxd4 {[%clk 0:00:34]}  Bxd4 {[%clk 0:01:09]} 27. Ra4 {[%clk 0:00:31]}  Qe7 {[%clk 0:00:29]} 28. Qc2 {[%clk 0:00:04]}  Ba7 {[%clk 0:00:22]} 29. Rxd8 {[%clk 0:00:03]}  Rxd8 {[%clk 0:00:22]} 30. Re4 {[%clk 0:00:03]}  Qd6 {[%clk 0:00:20]} 31. Qc1 {[%clk 0:00:02]}  Rd7 {[%clk 0:00:17]} 32. Re1 {[%clk 0:00:03]}  Qd4 {[%clk 0:00:17]} 33. Rf1 {[%clk 0:00:03]}  Bc5 {[%clk 0:00:15]} 34. b3 {[%clk 0:00:03]}  Rc7 {[%clk 0:00:15]} 35. Qb1 {[%clk 0:00:04]}  Bd6 {[%clk 0:00:14]} 36. Qa2 {[%clk 0:00:05]}  Qf4 {[%clk 0:00:14]} 37. Rd1 {[%clk 0:00:04]}  Qh2+ {[%clk 0:00:13]} 38. Kf1 {[%clk 0:00:05]}  Re7 {[%clk 0:00:12]} 39. g3 {[%clk 0:00:03]}  Bxg3 {[%clk 0:00:11]} 40. Bg2 {[%clk 0:00:01]}  Be5 {[%clk 0:00:09]} 41. Qc2 {[%clk 0:00:02]}  Qf4 {[%clk 0:00:08]} 42. Qc4 {[%clk 0:00:02]}  Bd4 {[%clk 0:00:08]} 43. Qc2 {[%clk 0:00:02]}  Rc7 {[%clk 0:00:08]} 44. Qe2 {[%clk 0:00:02]}  Kh6 {[%clk 0:00:06]} 45. Qf3 {[%clk 0:00:02]}  Qxf3 {[%clk 0:00:06]} 46. Bxf3 {[%clk 0:00:03]}  Be5 {[%clk 0:00:05]} 47. Be4 {[%clk 0:00:03]}  Rc3 {[%clk 0:00:05]} 48. Bd5 {[%clk 0:00:03]}  Rc5 {[%clk 0:00:05]} 49. Kg2 {[%clk 0:00:03]}  Rxa5 {[%clk 0:00:05]} 50. Bc4 {[%clk 0:00:03]}  Rc5 {[%clk 0:00:05]} 51. Rd7 {[%clk 0:00:04]}  Rc7 {[%clk 0:00:06]} 52. Rd8 {[%clk 0:00:04]}  b5 {[%clk 0:00:05]} 53. Bg8 {[%clk 0:00:04]}  Kg5 {[%clk 0:00:05]} 54. Ra8 {[%clk 0:00:05]}  h5 {[%clk 0:00:05]} 55. Rxa6 {[%clk 0:00:05]}  Rc3 {[%clk 0:00:06]} 56. Rb6 {[%clk 0:00:04]}  h4 {[%clk 0:00:07]} 57. Rb7 {[%clk 0:00:04]}  b4 {[%clk 0:00:06]} 58. Bc4 {[%clk 0:00:03]}  Bd6 {[%clk 0:00:06]} 59. Rg7 {[%clk 0:00:03]}  f5 {[%clk 0:00:06]} 60. Bb5 {[%clk 0:00:02]}  Rc5 {[%clk 0:00:05]} 61. Be8 {[%clk 0:00:02]}  Rc3 {[%clk 0:00:05]} 62. Rxg6+ {[%clk 0:00:03]}  Kf4 {[%clk 0:00:06]} 63. Rxd6 {[%clk 0:00:04]}  Rxb3 {[%clk 0:00:06]} 64. Bf7 {[%clk 0:00:05]}  Rc3 {[%clk 0:00:06]} 65. Rb6 {[%clk 0:00:05]}  b3 {[%clk 0:00:06]} 66. Rb4+ {[%clk 0:00:05]}  Kg5 {[%clk 0:00:05]} 67. Rxb3 {[%clk 0:00:05]}  Rc6 {[%clk 0:00:05]} 68. Bd5 {[%clk 0:00:05]}  Rf6 {[%clk 0:00:06]} 69. Bf3 {[%clk 0:00:04]}  Kf4 {[%clk 0:00:06]} 70. Rb4+ {[%clk 0:00:05]}  Kg5 {[%clk 0:00:06]} 71. Rc4 {[%clk 0:00:06]}  f4 {[%clk 0:00:07]} 72. Rc5+ {[%clk 0:00:06]}  Rf5 {[%clk 0:00:08]} 73. Rxf5+ {[%clk 0:00:06]}  Kxf5 {[%clk 0:00:09]} 74. Bg4+ {[%clk 0:00:07]}  Ke4 {[%clk 0:00:09]} 75. Kf1 {[%clk 0:00:07]}  f3 {[%clk 0:00:10]} 76. Ke1 {[%clk 0:00:07]}  Kf4 {[%clk 0:00:11]} 77. Kd2 {[%clk 0:00:08]}  Ke4 {[%clk 0:00:12]} 78. Kc3 {[%clk 0:00:07]}  Kf4 {[%clk 0:00:12]} 79. Kd3 {[%clk 0:00:07]}  Kg5 {[%clk 0:00:13]} 80. Ke3 {[%clk 0:00:08]}  Kf6 {[%clk 0:00:13]} 81. Kxf3 {[%clk 0:00:08]}  Kg5 {[%clk 0:00:14]} 82. Ke3 {[%clk 0:00:09]}  Kf6 {[%clk 0:00:15]} 83. f4 {[%clk 0:00:09]}  Kg6 {[%clk 0:00:15]} 84. Ke4 {[%clk 0:00:10]}  Kf6 {[%clk 0:00:16]} 85. f5 {[%clk 0:00:10]}  Kf7 {[%clk 0:00:14]} 86. Ke5 {[%clk 0:00:11]}  Ke7 {[%clk 0:00:15]} 87. f6+ {[%clk 0:00:11]}  Kf7 {[%clk 0:00:16]} 88. Bh5+ {[%clk 0:00:11]}  Kg8 {[%clk 0:00:16]} 89. f7+ {[%clk 0:00:10]}  Kh7 {[%clk 0:00:17]} 90. Kf6 {[%clk 0:00:06]}  Kh6 {[%clk 0:00:18]} 91. f8=Q+ {[%clk 0:00:06]}  Kxh5 {[%clk 0:00:19]} 92. Qh8# {[%clk 0:00:07]} 1-0


[Site "https://www.chess.com"]

[Event "Titled Tuesday Blitz April 05 Late 2022"]
[White "Wesolowska, Hanna"]
[Black "Weetik, Vjacheslav"]
[WhiteFideId "1104683"]
[BlackFideId "4153472"]
[WhiteElo "2368"]
[BlackElo "2469"]
[Result "0-1"]
[Round "03"]
[TimeControl "180+1"]
[Date "2022.04.06"]
[WhiteClock "0:00:23"]
[BlackClock "0:00:11"]

1. e4 {[%clk 0:02:54]}  c6 {[%clk 0:02:59]} 2. d4 {[%clk 0:02:52]}  d5 {[%clk 0:03:00]} 3. Nc3 {[%clk 0:02:51]}  dxe4 {[%clk 0:03:00]} 4. Nxe4 {[%clk 0:02:52]}  Bf5 {[%clk 0:03:00]} 5. Ng3 {[%clk 0:02:53]}  Bg6 {[%clk 0:03:00]} 6. Nh3 {[%clk 0:02:53]}  e6 {[%clk 0:02:59]} 7. Nf4 {[%clk 0:02:53]}  Bd6 {[%clk 0:03:00]} 8. h4 {[%clk 0:02:53]}  Qc7 {[%clk 0:03:00]} 9. Nfh5 {[%clk 0:02:49]}  Bxh5 {[%clk 0:02:56]} 10. Nxh5 {[%clk 0:02:49]}  g6 {[%clk 0:02:56]} 11. Ng7+ {[%clk 0:02:28]}  Kf8 {[%clk 0:02:49]} 12. Nh5 {[%clk 0:02:16]}  Qa5+ {[%clk 0:02:39]} 13. Bd2 {[%clk 0:02:12]}  Qxh5 {[%clk 0:02:38]} 14. Be2 {[%clk 0:02:11]}  Qf5 {[%clk 0:02:18]} 15. g4 {[%clk 0:02:09]}  Qf6 {[%clk 0:02:04]} 16. Bg5 {[%clk 0:02:08]}  Qg7 {[%clk 0:02:02]} 17. c3 {[%clk 0:01:54]}  h6 {[%clk 0:01:51]} 18. Be3 {[%clk 0:01:53]}  Nf6 {[%clk 0:01:43]} 19. Qb3 {[%clk 0:01:52]}  b6 {[%clk 0:01:42]} 20. Bf3 {[%clk 0:01:50]}  Nd5 {[%clk 0:01:41]} 21. O-O-O {[%clk 0:01:47]}  Nd7 {[%clk 0:01:39]} 22. c4 {[%clk 0:01:45]}  Nxe3 {[%clk 0:01:35]} 23. fxe3 {[%clk 0:01:45]}  Rc8 {[%clk 0:01:29]} 24. Qa4 {[%clk 0:01:44]}  Rc7 {[%clk 0:01:11]} 25. Bxc6 {[%clk 0:01:42]}  Ke7 {[%clk 0:01:11]} 26. d5 {[%clk 0:01:39]}  Ne5 {[%clk 0:01:05]} 27. Rhf1 {[%clk 0:01:29]}  Nxc6 {[%clk 0:00:56]} 28. dxc6 {[%clk 0:01:28]}  Qe5 {[%clk 0:00:55]} 29. Kb1 {[%clk 0:01:21]}  Rhc8 {[%clk 0:00:54]} 30. h5 {[%clk 0:01:19]}  g5 {[%clk 0:00:44]} 31. Qc2 {[%clk 0:01:18]}  Qg7 {[%clk 0:00:35]} 32. Qd3 {[%clk 0:01:09]}  Rxc6 {[%clk 0:00:35]} 33. b3 {[%clk 0:01:09]}  Kf8 {[%clk 0:00:26]} 34. Rf2 {[%clk 0:01:06]}  Kg8 {[%clk 0:00:25]} 35. Rdf1 {[%clk 0:01:06]}  R8c7 {[%clk 0:00:22]} 36. Rd1 {[%clk 0:01:01]}  a6 {[%clk 0:00:18]} 37. Qe4 {[%clk 0:00:59]}  Bf8 {[%clk 0:00:17]} 38. Rd8 {[%clk 0:00:58]}  b5 {[%clk 0:00:17]} 39. Rfd2 {[%clk 0:00:14]}  bxc4 {[%clk 0:00:16]} 40. b4 {[%clk 0:00:15]}  c3 {[%clk 0:00:16]} 41. Rc2 {[%clk 0:00:15]}  Rc4 {[%clk 0:00:16]} 42. Qa8 {[%clk 0:00:14]}  Rxb4+ {[%clk 0:00:16]} 43. Kc1 {[%clk 0:00:15]}  Rxg4 {[%clk 0:00:15]} 44. Qb8 {[%clk 0:00:14]}  Rg1+ {[%clk 0:00:14]} 45. Rd1 {[%clk 0:00:14]}  Rxd1+ {[%clk 0:00:14]} 46. Kxd1 {[%clk 0:00:15]}  Rd7+ {[%clk 0:00:14]} 47. Ke2 {[%clk 0:00:15]}  Qf6 {[%clk 0:00:11]} 48. Qg3 {[%clk 0:00:15]}  Kg7 {[%clk 0:00:10]} 49. Qf3 {[%clk 0:00:15]}  Rd2+ {[%clk 0:00:09]} 50. Rxd2 {[%clk 0:00:15]}  Qxf3+ {[%clk 0:00:09]} 51. Kxf3 {[%clk 0:00:15]}  cxd2 {[%clk 0:00:10]} 52. Ke2 {[%clk 0:00:16]}  Bb4 {[%clk 0:00:10]} 53. a3 {[%clk 0:00:16]}  Bxa3 {[%clk 0:00:11]} 54. Kxd2 {[%clk 0:00:15]}  f5 {[%clk 0:00:11]} 55. Kd3 {[%clk 0:00:16]}  Kf6 {[%clk 0:00:11]} 56. Kd4 {[%clk 0:00:17]}  g4 {[%clk 0:00:11]} 57. e4 {[%clk 0:00:18]}  g3 {[%clk 0:00:11]} 58. e5+ {[%clk 0:00:18]}  Kg5 {[%clk 0:00:11]} 59. Ke3 {[%clk 0:00:19]}  Kg4 {[%clk 0:00:11]} 60. Ke2 {[%clk 0:00:20]}  Bc5 {[%clk 0:00:11]} 61. Kf1 {[%clk 0:00:20]}  Kf3 {[%clk 0:00:11]} 62. Ke1 {[%clk 0:00:20]}  g2 {[%clk 0:00:11]} 63. Kd2 {[%clk 0:00:21]}  g1=Q {[%clk 0:00:11]} 64. Kd3 {[%clk 0:00:22]}  Qd4+ {[%clk 0:00:11]} 65. Kc2 {[%clk 0:00:22]}  Ke3 {[%clk 0:00:11]} 66. Kb3 {[%clk 0:00:23]}  f4 {[%clk 0:00:11]} 67. Ka2 {[%clk 0:00:23]}  Qc3 {[%clk 0:00:09]} 68. Kb1 {[%clk 0:00:23]}  Qd2 {[%clk 0:00:09]} 69. Ka1 {[%clk 0:00:23]}  Bd4+ {[%clk 0:00:10]} 70. Kb1 {[%clk 0:00:23]}  Qb2# {[%clk 0:00:11]} 0-1


[Site "https://www.chess.com"]

[Event "Titled Tuesday Blitz April 05 Late 2022"]
[White "Yuan, Qingyu"]
[Black "Moral Garcia, Serafin"]
[WhiteFideId "8609772"]
[BlackFideId "2201925"]
[WhiteElo "2359"]
[BlackElo "2228"]
[Result "1-0"]
[Round "03"]
[TimeControl "180+1"]
[Date "2022.04.06"]
[WhiteClock "0:01:17"]
[BlackClock "0:01:49"]

1. e4 {[%clk 0:03:00]}  e5 {[%clk 0:02:53]} 2. Nf3 {[%clk 0:03:01]}  Nc6 {[%clk 0:02:53]} 3. Bc4 {[%clk 0:03:02]}  Bc5 {[%clk 0:02:52]} 4. d3 {[%clk 0:03:02]}  Nf6 {[%clk 0:02:52]} 5. Bg5 {[%clk 0:03:02]}  a6 {[%clk 0:02:52]} 6. c3 {[%clk 0:02:53]}  d6 {[%clk 0:02:48]} 7. Nbd2 {[%clk 0:02:45]}  Ba7 {[%clk 0:02:46]} 8. a4 {[%clk 0:02:41]}  Qe7 {[%clk 0:02:46]} 9. b4 {[%clk 0:02:35]}  Nd8 {[%clk 0:02:45]} 10. O-O {[%clk 0:02:24]}  Ne6 {[%clk 0:02:44]} 11. Be3 {[%clk 0:02:23]}  O-O {[%clk 0:02:42]} 12. Re1 {[%clk 0:02:13]}  h6 {[%clk 0:02:40]} 13. Bxa7 {[%clk 0:02:09]}  Rxa7 {[%clk 0:02:39]} 14. d4 {[%clk 0:02:08]}  Nf4 {[%clk 0:02:38]} 15. g3 {[%clk 0:02:07]}  Ng6 {[%clk 0:02:37]} 16. Kg2 {[%clk 0:01:58]}  Ra8 {[%clk 0:02:32]} 17. Qb3 {[%clk 0:01:55]}  Nh5 {[%clk 0:02:25]} 18. Kh1 {[%clk 0:01:34]}  Bg4 {[%clk 0:02:19]} 19. Bf1 {[%clk 0:01:33]}  Qd7 {[%clk 0:02:04]} 20. Bg2 {[%clk 0:01:28]}  Kh8 {[%clk 0:01:59]} 21. Qc4 {[%clk 0:01:27]}  f5 {[%clk 0:01:52]} 22. exf5 {[%clk 0:01:18]}  Rxf5 {[%clk 0:01:52]} 23. dxe5 {[%clk 0:01:18]}  dxe5 {[%clk 0:01:49]} 24. Qxg4 {[%clk 0:01:17]} 1-0


[Site "https://www.chess.com"]

[Event "Titled Tuesday Blitz April 05 Late 2022"]
[White "Yurtseven, Melih"]
[Black "Romero Ruscalleda, Josep"]
[WhiteFideId "6312160"]
[BlackFideId "2231859"]
[WhiteElo "2160"]
[BlackElo "2294"]
[Result "0-1"]
[Round "03"]
[TimeControl "180+1"]
[Date "2022.04.06"]
[WhiteClock "0:00:01"]
[BlackClock "0:00:23"]

1. Nf3 {[%clk 0:02:55]}  g6 {[%clk 0:03:00]} 2. g3 {[%clk 0:02:50]}  Bg7 {[%clk 0:03:00]} 3. Bg2 {[%clk 0:02:50]}  d6 {[%clk 0:03:01]} 4. O-O {[%clk 0:02:51]}  e5 {[%clk 0:03:01]} 5. d3 {[%clk 0:02:51]}  f5 {[%clk 0:03:01]} 6. e4 {[%clk 0:02:49]}  Ne7 {[%clk 0:02:58]} 7. Nc3 {[%clk 0:02:48]}  O-O {[%clk 0:02:57]} 8. d4 {[%clk 0:02:22]}  fxe4 {[%clk 0:02:28]} 9. Nxe4 {[%clk 0:02:19]}  d5 {[%clk 0:02:29]} 10. Nc5 {[%clk 0:02:19]}  e4 {[%clk 0:02:29]} 11. Ng5 {[%clk 0:02:19]}  Rf6 {[%clk 0:02:18]} 12. f3 {[%clk 0:02:04]}  b6 {[%clk 0:02:17]} 13. Nb3 {[%clk 0:01:43]}  h6 {[%clk 0:01:52]} 14. Nh3 {[%clk 0:01:41]}  exf3 {[%clk 0:01:49]} 15. Rxf3 {[%clk 0:01:35]}  Bg4 {[%clk 0:01:45]} 16. Nf4 {[%clk 0:01:36]}  g5 {[%clk 0:01:39]} 17. Nd3 {[%clk 0:01:28]}  Nd7 {[%clk 0:01:34]} 18. h3 {[%clk 0:01:01]}  Bxf3 {[%clk 0:01:33]} 19. Bxf3 {[%clk 0:01:02]}  Qf8 {[%clk 0:01:28]} 20. Kg2 {[%clk 0:01:00]}  c6 {[%clk 0:01:19]} 21. Bd2 {[%clk 0:00:56]}  Qf7 {[%clk 0:01:11]} 22. Bh5 {[%clk 0:00:52]}  Qe6 {[%clk 0:01:07]} 23. Qe1 {[%clk 0:00:38]}  Raf8 {[%clk 0:01:01]} 24. Qxe6+ {[%clk 0:00:33]}  Rxe6 {[%clk 0:01:01]} 25. Bg4 {[%clk 0:00:34]}  Nf5 {[%clk 0:00:49]} 26. Rf1 {[%clk 0:00:33]}  Ref6 {[%clk 0:00:49]} 27. Ne5 {[%clk 0:00:19]}  Nxe5 {[%clk 0:00:47]} 28. dxe5 {[%clk 0:00:20]}  Nh4+ {[%clk 0:00:47]} 29. gxh4 {[%clk 0:00:18]}  Rxf1 {[%clk 0:00:47]} 30. Be3 {[%clk 0:00:11]}  Bxe5 {[%clk 0:00:43]} 31. hxg5 {[%clk 0:00:11]}  hxg5 {[%clk 0:00:43]} 32. c3 {[%clk 0:00:10]}  Rb1 {[%clk 0:00:40]} 33. Nd4 {[%clk 0:00:06]}  Rxb2+ {[%clk 0:00:39]} 34. Kg1 {[%clk 0:00:06]}  Bf4 {[%clk 0:00:36]} 35. Bf2 {[%clk 0:00:04]}  c5 {[%clk 0:00:23]} 36. Ne6 {[%clk 0:00:01]}  Rf6 {[%clk 0:00:23]} 0-1


[Site "https://www.chess.com"]

[Event "Titled Tuesday Blitz April 05 Late 2022"]
[White "Abdyzhapar, Asylbek"]
[Black "Paravyan, David"]
[WhiteFideId "13800337"]
[BlackFideId "4194985"]
[WhiteElo "2331"]
[BlackElo "2569"]
[Result "1-0"]
[Round "04"]
[TimeControl "180+1"]
[Date "2022.04.05"]
[WhiteClock "0:00:15"]
[BlackClock "0:00:06"]

1. d4 {[%clk 0:02:58]}  Nf6 {[%clk 0:03:00]} 2. Bf4 {[%clk 0:02:58]}  g6 {[%clk 0:02:59]} 3. Nc3 {[%clk 0:02:57]}  d5 {[%clk 0:02:59]} 4. e3 {[%clk 0:02:57]}  Bg7 {[%clk 0:02:58]} 5. h4 {[%clk 0:02:57]}  h5 {[%clk 0:02:58]} 6. Be2 {[%clk 0:02:55]}  O-O {[%clk 0:02:57]} 7. Nf3 {[%clk 0:02:56]}  c5 {[%clk 0:02:57]} 8. Ne5 {[%clk 0:02:53]}  Nc6 {[%clk 0:02:54]} 9. Qd2 {[%clk 0:02:34]}  Bf5 {[%clk 0:02:49]} 10. f3 {[%clk 0:02:29]}  cxd4 {[%clk 0:02:35]} 11. exd4 {[%clk 0:02:29]}  Qb6 {[%clk 0:02:35]} 12. O-O-O {[%clk 0:02:22]}  Rac8 {[%clk 0:02:29]} 13. Na4 {[%clk 0:02:04]}  Qd8 {[%clk 0:01:39]} 14. Nc5 {[%clk 0:01:58]}  Nxe5 {[%clk 0:01:37]} 15. Bxe5 {[%clk 0:01:57]}  Kh7 {[%clk 0:01:21]} 16. Bd3 {[%clk 0:01:53]}  Bh6 {[%clk 0:01:04]} 17. Bf4 {[%clk 0:01:47]}  Bxf4 {[%clk 0:01:02]} 18. Qxf4 {[%clk 0:01:46]}  Bxd3 {[%clk 0:01:02]} 19. Nxd3 {[%clk 0:01:41]}  Qc7 {[%clk 0:01:00]} 20. Qxc7 {[%clk 0:01:41]}  Rxc7 {[%clk 0:01:01]} 21. c3 {[%clk 0:01:42]}  e6 {[%clk 0:00:58]} 22. Kd2 {[%clk 0:01:40]}  Kg7 {[%clk 0:00:57]} 23. a4 {[%clk 0:01:36]}  Rfc8 {[%clk 0:00:56]} 24. a5 {[%clk 0:01:35]}  Rb8 {[%clk 0:00:49]} 25. Ne5 {[%clk 0:01:31]}  Nd7 {[%clk 0:00:48]} 26. Nxd7 {[%clk 0:01:29]}  Rxd7 {[%clk 0:00:47]} 27. Ra1 {[%clk 0:01:29]}  Rc8 {[%clk 0:00:40]} 28. Ra3 {[%clk 0:01:27]}  Rc6 {[%clk 0:00:40]} 29. Rb3 {[%clk 0:01:27]}  Rc8 {[%clk 0:00:28]} 30. Ra1 {[%clk 0:01:23]}  Kf6 {[%clk 0:00:28]} 31. Ra4 {[%clk 0:01:22]}  Kf5 {[%clk 0:00:27]} 32. Ke3 {[%clk 0:01:20]}  f6 {[%clk 0:00:23]} 33. Rab4 {[%clk 0:01:19]}  Rcc7 {[%clk 0:00:24]} 34. Rb5 {[%clk 0:01:18]}  g5 {[%clk 0:00:23]} 35. hxg5 {[%clk 0:01:16]}  fxg5 {[%clk 0:00:24]} 36. Ra3 {[%clk 0:01:12]}  h4 {[%clk 0:00:21]} 37. Ra1 {[%clk 0:01:10]}  Rg7 {[%clk 0:00:17]} 38. Kf2 {[%clk 0:01:08]}  Rgf7 {[%clk 0:00:16]} 39. Re1 {[%clk 0:01:07]}  g4 {[%clk 0:00:10]} 40. Re5+ {[%clk 0:01:05]}  Kf4 {[%clk 0:00:10]} 41. Rxe6 {[%clk 0:00:56]}  g3+ {[%clk 0:00:11]} 42. Kf1 {[%clk 0:00:45]}  h3 {[%clk 0:00:11]} 43. Rxd5 {[%clk 0:00:44]}  Rce7 {[%clk 0:00:12]} 44. Rxe7 {[%clk 0:00:36]}  Rxe7 {[%clk 0:00:13]} 45. gxh3 {[%clk 0:00:34]}  Re3 {[%clk 0:00:11]} 46. Rd7 {[%clk 0:00:23]}  Rxf3+ {[%clk 0:00:11]} 47. Kg1 {[%clk 0:00:23]}  Rd3 {[%clk 0:00:09]} 48. Rf7+ {[%clk 0:00:20]}  Kg5 {[%clk 0:00:07]} 49. Rxb7 {[%clk 0:00:20]}  Rd2 {[%clk 0:00:04]} 50. a6 {[%clk 0:00:17]}  Kf4 {[%clk 0:00:03]} 51. Rf7+ {[%clk 0:00:15]}  Ke3 {[%clk 0:00:03]} 52. Rxa7 {[%clk 0:00:15]}  Rxb2 {[%clk 0:00:03]} 53. Rg7 {[%clk 0:00:14]}  Kf3 {[%clk 0:00:03]} 54. Rf7+ {[%clk 0:00:14]}  Ke3 {[%clk 0:00:03]} 55. a7 {[%clk 0:00:14]}  Ra2 {[%clk 0:00:03]} 56. h4 {[%clk 0:00:15]}  Ke4 {[%clk 0:00:04]} 57. h5 {[%clk 0:00:15]}  Kd5 {[%clk 0:00:05]} 58. h6 {[%clk 0:00:15]}  Ke6 {[%clk 0:00:06]} 59. h7 {[%clk 0:00:15]}  Kxf7 {[%clk 0:00:06]} 60. h8=Q {[%clk 0:00:15]} 1-0


[Site "https://www.chess.com"]

[Event "Titled Tuesday Blitz April 05 Late 2022"]
[White "Araujo Sanchez, Josue"]
[Black "Ibarra Jerez, Jose Carlos"]
[WhiteFideId "6416896"]
[BlackFideId "2226332"]
[WhiteElo "2339"]
[BlackElo "2626"]
[Result "0-1"]
[Round "04"]
[TimeControl "180+1"]
[Date "2022.04.05"]
[WhiteClock "0:02:04"]
[BlackClock "0:01:34"]

1. e4 {[%clk 0:02:56]}  c5 {[%clk 0:02:59]} 2. Nf3 {[%clk 0:02:54]}  e6 {[%clk 0:03:00]} 3. c3 {[%clk 0:02:53]}  Nf6 {[%clk 0:02:59]} 4. d3 {[%clk 0:02:49]}  d5 {[%clk 0:02:57]} 5. Nbd2 {[%clk 0:02:50]}  Nc6 {[%clk 0:02:57]} 6. Be2 {[%clk 0:02:47]}  g6 {[%clk 0:02:55]} 7. O-O {[%clk 0:02:47]}  Bg7 {[%clk 0:02:56]} 8. exd5 {[%clk 0:02:45]}  Nxd5 {[%clk 0:02:52]} 9. Re1 {[%clk 0:02:44]}  O-O {[%clk 0:02:39]} 10. Bf1 {[%clk 0:02:43]}  b6 {[%clk 0:02:38]} 11. a4 {[%clk 0:02:42]}  Bb7 {[%clk 0:02:38]} 12. Nc4 {[%clk 0:02:42]}  Qc7 {[%clk 0:02:37]} 13. g3 {[%clk 0:02:41]}  Rad8 {[%clk 0:02:37]} 14. Bg2 {[%clk 0:02:41]}  Ba6 {[%clk 0:02:33]} 15. Qc2 {[%clk 0:02:38]}  Ndb4 {[%clk 0:02:27]} 16. cxb4 {[%clk 0:02:22]}  Nxb4 {[%clk 0:02:26]} 17. Qb1 {[%clk 0:02:21]}  Nxd3 {[%clk 0:02:23]} 18. Ne3 {[%clk 0:02:19]}  Nxe1 {[%clk 0:02:18]} 19. Nxe1 {[%clk 0:02:20]}  Rd7 {[%clk 0:02:13]} 20. a5 {[%clk 0:02:20]}  b5 {[%clk 0:02:08]} 21. Qc2 {[%clk 0:02:15]}  Rfd8 {[%clk 0:02:06]} 22. Nf3 {[%clk 0:02:13]}  c4 {[%clk 0:02:01]} 23. h4 {[%clk 0:02:12]}  b4 {[%clk 0:01:58]} 24. h5 {[%clk 0:02:08]}  b3 {[%clk 0:01:58]} 25. Qe4 {[%clk 0:02:07]}  c3 {[%clk 0:01:42]} 26. bxc3 {[%clk 0:02:05]}  Qxc3 {[%clk 0:01:41]} 27. Rb1 {[%clk 0:02:04]}  Bd3 {[%clk 0:01:34]} 0-1


[Site "https://www.chess.com"]